bitfinex/quotes_SOLUSD_20250823
["timestamp","ask_amount","ask_price","bid_price","bid_amount"]
[1755966240568,0.06,203.6,203.59,73.30794392]
[1755966241982,0.75,203.6,203.59,3.64453961]
[1755966242286,12.7059777,203.6,203.59,3.64453961]
[1755966242591,12.7059777,203.6,203.58,0.03]
[1755966242791,12.6459777,203.59,203.58,0.03]
[1755966243077,12.6459777,203.59,203.58,3.60475727]
[1755966243698,12.6459777,203.59,203.58,0.03]
[1755966244387,17.5578103,203.59,203.58,0.03]
[1755966244766,5.6018326,203.59,203.58,0.03]
[1755966244987,12.6459777,203.59,203.58,0.03]
[1755966245290,17.5578103,203.59,203.58,0.03]
[1755966247093,12.6459777,203.59,203.58,0.03]
[1755966247587,17.5578103,203.59,203.58,0.03]
[1755966247974,56.0378103,203.59,203.57,0.03]
[1755966248179,26.0,203.56,203.55,0.03]
[1755966248382,37.9559777,203.56,203.55,0.03]
[1755966248685,38.6459777,203.56,203.55,0.03]
[1755966249062,26.69,203.56,203.55,0.03]
[1755966249264,38.6459777,203.56,203.55,0.03]
[1755966249686,26.69,203.56,203.55,0.03]
[1755966249997,38.6459777,203.56,203.55,0.03]
[1755966250429,26.0,203.56,203.55,0.03]
[1755966250682,37.9559777,203.56,203.55,0.03]
[1755966251199,38.6459777,203.56,203.55,0.03]
[1755966251485,26.0,203.58,203.55,0.03]
[1755966251660,12.6459777,203.56,203.55,0.03]
[1755966251864,11.9559777,203.56,203.55,3.60941398]
[1755966253366,11.9559777,203.56,203.55,3.60945591]
[1755966253565,26.0,203.58,203.55,3.60945591]
[1755966253894,11.9559777,203.56,203.55,0.75]
[1755966254206,11.9559777,203.56,203.55,3.60931607]
[1755966256001,12.6459777,203.56,203.55,0.03]
[1755966256379,17.55853419,203.56,203.55,0.03]
[1755966256602,43.55853419,203.56,203.55,0.03]
[1755966256981,17.55853419,203.56,203.55,0.03]
[1755966262191,12.6459777,203.56,203.55,0.03]
[1755966262418,0.06,203.6,203.55,0.75]
[1755966262705,11.9559777,203.58,203.56,0.72]
[1755966263213,11.9559777,203.57,203.56,0.72]
[1755966263379,0.06,203.6,203.56,0.72]
[1755966263584,11.9559777,203.57,203.56,0.72]
[1755966265216,11.9559777,203.58,203.56,0.72]
[1755966267416,0.06,203.6,203.56,0.72]
[1755966267714,11.9559777,203.58,203.56,0.72]
[1755966268013,11.9559777,203.57,203.55,0.03]
[1755966268599,11.9559777,203.57,203.55,0.72]
[1755966270405,11.9559777,203.57,203.55,0.03]
[1755966270606,12.6359777,203.56,203.55,0.03]
[1755966273595,11.9559777,203.56,203.55,0.03]
[1755966274531,0.68,203.58,203.55,0.03]
[1755966274833,11.9559777,203.56,203.55,0.03]
[1755966275624,12.0159777,203.57,203.55,0.03]
[1755966276006,12.6959777,203.57,203.55,0.03]
[1755966278030,12.6359777,203.56,203.55,0.03]
[1755966279919,12.0159777,203.57,203.55,0.03]
[1755966280448,0.06,203.57,203.55,0.03]
[1755966280634,0.06,203.57,203.56,0.69]
[1755966282432,0.06,203.57,203.55,0.03]
[1755966282606,0.06,203.57,203.55,0.72]
[1755966284507,0.06,203.57,203.56,0.69]
[1755966286608,0.06,203.57,203.56,4.10434093]
[1755966287960,0.06,203.57,203.56,9.01689742]
[1755966289921,0.06,203.57,203.56,4.10434093]
[1755966290127,0.06,203.57,203.56,3.41434093]
[1755966290942,0.06,203.57,203.56,3.41469997]
[1755966291529,0.06,203.57,203.56,3.44469997]
[1755966292046,0.06,203.57,203.56,8.35725646]
[1755966292254,0.06,203.57,203.56,16.09067767]
[1755966292416,0.06,203.57,203.56,3.44469997]
[1755966292740,0.06,203.57,203.56,3.44385314]
[1755966292931,0.74,203.57,203.56,3.44385314]
[1755966293328,0.06,203.57,203.56,3.44327381]
[1755966293536,0.06,203.57,203.56,3.44348535]
[1755966294652,0.74,203.57,203.56,3.44348535]
[1755966295455,0.06,203.57,203.56,3.44348535]
[1755966295831,0.74,203.57,203.56,3.44348535]
[1755966296527,12.6959777,203.57,203.56,0.03]
[1755966297462,17.60829287,203.57,203.56,0.03]
[1755966297749,38.7359777,203.57,203.56,0.03]
[1755966297966,43.79045444,203.57,203.55,0.03]
[1755966298123,12.6759777,203.56,203.55,0.03]
[1755966299022,55.90853419,203.56,203.55,0.03]
[1755966299251,26.20216157,203.57,203.55,12.6659777]
[1755966299252,0.06,203.57,203.55,12.6659777]
[1755966299449,0.06,203.57,203.56,29.46364508]
[1755966301054,0.06,203.57,203.56,34.37620157]
[1755966301561,0.06,203.57,203.56,34.37484162]
[1755966301743,0.06,203.6,203.58,0.28432314]
[1755966301947,0.72,203.79,203.61,0.28432314]
[1755966302129,0.72,203.79,203.67,25.69373328]
[1755966302130,11.9559777,203.76,203.67,25.69373328]
[1755966302334,12.6759777,203.77,203.67,29.74660827]
[1755966302641,0.72,203.77,203.67,29.74660827]
[1755966303143,0.72,203.77,203.67,34.65651154]
[1755966303541,12.6759777,203.79,203.67,34.65651154]
[1755966303755,11.9559777,203.78,203.67,34.65651154]
[1755966304057,38.6759777,203.78,203.67,34.65651154]
[1755966304249,0.72,203.78,203.67,34.65651154]
[1755966304450,26.72,203.78,203.67,34.65651154]
[1755966304633,0.72,203.78,203.67,34.65651154]
[1755966305032,0.06,203.73,203.67,22.70053384]
[1755966305229,0.06,203.73,203.67,34.65651154]
[1755966306559,0.06,203.73,203.67,73.87651154]
[1755966307299,0.06,203.73,203.67,31.42579812]
[1755966307688,0.06,203.73,203.67,34.92381454]
[1755966307901,0.06,203.73,203.67,19.46982042]
[1755966308080,0.06,203.73,203.67,31.42579812]
[1755966308393,6.36603487,203.68,203.67,31.42579812]
[1755966308786,6.36603487,203.68,203.67,34.9217457]
[1755966311391,6.36603487,203.68,203.67,34.91676749]
[1755966311587,6.36603487,203.68,203.67,31.42579812]
[1755966312768,6.36603487,203.68,203.65,26.0]
[1755966312968,6.36603487,203.68,203.66,12.6359777]
[1755966313276,0.06,203.71,203.7,39.59559401]
[1755966313475,0.06,203.71,203.7,56.68699437]
[1755966313668,0.06,203.71,203.7,17.0848328]
[1755966313871,0.06,203.71,203.7,13.59559401]
[1755966314082,0.06,203.71,203.7,65.03157171]
[1755966314773,0.06,203.73,203.72,13.59559401]
[1755966315087,0.06,203.73,203.72,55.03459794]
[1755966316086,0.06,203.73,203.72,47.98731845]
[1755966316295,0.72,203.83,203.77,0.28432314]
[1755966316479,0.72,203.83,203.82,25.55157171]
[1755966317693,0.72,203.83,203.82,13.59559401]
[1755966318072,11.1759777,203.88,203.82,13.59559401]
[1755966318272,11.9559777,203.86,203.77,0.28432314]
[1755966318480,11.9559777,203.86,203.8,25.55157171]
[1755966319186,11.9559777,203.87,203.8,25.55157171]
[1755966319697,11.9559777,203.86,203.79,13.59559401]
[1755966319900,26.0,203.89,203.8,11.9559777]
[1755966319901,11.9559777,203.87,203.8,11.9559777]
[1755966320103,0.72,203.86,203.82,13.59559401]
[1755966320600,4.9046492,203.89,203.82,13.59559401]
[1755966320807,0.72,203.85,203.82,13.59559401]
[1755966320976,0.72,203.84,203.81,11.9559777]
[1755966321172,0.72,203.84,203.8,13.59559401]
[1755966321798,0.72,203.83,203.8,13.59559401]
[1755966321987,11.9559777,203.86,203.8,13.59559401]
[1755966322200,0.72,203.82,203.8,13.59559401]
[1755966322774,16.86132811,203.86,203.79,11.9559777]
[1755966323103,11.9559777,203.84,203.78,25.55157171]
[1755966323300,12.6759777,203.83,203.77,0.03]
[1755966323495,11.9559777,203.82,203.77,0.03]
[1755966323695,12.6759777,203.82,203.77,0.03]
[1755966323899,12.6759777,203.81,203.77,0.03]
[1755966324080,11.9559777,203.8,203.77,0.03]
[1755966324279,11.9559777,203.79,203.77,0.03]
[1755966324501,0.72,203.79,203.77,0.03]
[1755966324705,0.72,203.78,203.77,0.03]
[1755966324909,12.6759777,203.78,203.68,39.48]
[1755966325204,26.0,203.79,203.7,11.9559777]
[1755966325205,12.6759777,203.77,203.7,11.9559777]
[1755966325411,0.72,203.76,203.7,11.9559777]
[1755966325911,12.6759777,203.76,203.7,11.9559777]
[1755966326210,0.72,203.75,203.7,11.9559777]
[1755966326400,0.72,203.74,203.7,11.9559777]
[1755966326595,0.72,203.73,203.69,18.50491334]
[1755966326809,0.72,203.73,203.7,15.47168603]
[1755966327012,0.72,203.73,203.7,11.9559777]
[1755966327611,0.67,203.76,203.69,4.90938889]
[1755966327794,11.9559777,203.71,203.62,4.91110892]
[1755966328102,12.6259777,203.7,203.65,13.59559401]
[1755966328410,0.67,203.69,203.65,13.59559401]
[1755966328707,0.67,203.68,203.65,13.59559401]
[1755966329209,0.67,203.68,203.65,11.9559777]
[1755966329595,0.67,203.68,203.65,16.86635418]
[1755966330112,0.67,203.68,203.65,11.9559777]
[1755966330500,11.9559777,203.7,203.64,25.55157171]
[1755966330884,12.6259777,203.69,203.64,13.59559401]
[1755966331085,0.67,203.68,203.64,13.59559401]
[1755966331290,0.67,203.68,203.64,25.55157171]
[1755966332794,12.6259777,203.7,203.64,25.55157171]
[1755966333115,11.9559777,203.69,203.64,25.55157171]
[1755966333317,11.9559777,203.69,203.64,13.59559401]
[1755966333617,12.6259777,203.69,203.64,13.59559401]
[1755966333821,11.9559777,203.67,203.62,52.97559401]
[1755966334023,11.9559777,203.68,203.62,64.93157171]
[1755966334203,0.67,203.67,203.63,3.34730761]
[1755966334402,0.67,203.67,203.62,64.93157171]
[1755966334617,11.9559777,203.68,203.63,3.9977323]
[1755966334822,11.9559777,203.68,203.63,5.56080908]
[1755966335002,12.6259777,203.68,203.63,5.56080908]
[1755966335599,11.9559777,203.69,203.64,3.34857191]
[1755966335805,11.9559777,203.69,203.64,0.65]
[1755966336011,12.6259777,203.69,203.64,0.65]
[1755966336517,0.67,203.68,203.63,16.86678678]
[1755966336724,0.67,203.68,203.64,3.34959725]
[1755966337032,0.67,203.68,203.63,16.86678678]
[1755966337337,0.67,203.68,203.64,3.35008404]
[1755966337495,0.67,203.68,203.63,16.86678678]
[1755966337693,0.67,203.68,203.64,3.35020811]
[1755966337931,0.67,203.68,203.63,16.86678678]
[1755966338103,0.67,203.68,203.64,3.35093993]
[1755966338291,0.67,203.68,203.63,16.86678678]
[1755966338496,0.67,203.68,203.64,8.26194245]
[1755966338798,0.67,203.68,203.64,4.91054438]
[1755966339102,0.67,203.67,203.64,4.91054438]
[1755966339496,11.9559777,203.69,203.64,4.91054438]
[1755966339697,11.9559777,203.72,203.67,13.59559401]
[1755966340006,12.6259777,203.71,203.66,13.59559401]
[1755966340204,0.67,203.71,203.67,3.35469931]
[1755966340410,0.67,203.71,203.67,4.90990327]
[1755966340599,0.67,203.74,203.68,14.24559401]
[1755966340795,0.67,203.71,203.66,16.8660635]
[1755966340996,11.9559777,203.71,203.67,13.59559401]
[1755966341224,11.9559777,203.69,203.63,16.86684545]
[1755966341397,12.6259777,203.7,203.64,28.90858527]
[1755966341605,11.9559777,203.7,203.65,3.35701356]
[1755966341924,0.67,203.69,203.64,25.58157171]
[1755966342125,0.67,203.69,203.65,3.25376884]
[1755966342310,0.67,203.69,203.66,3.25606319]
[1755966342505,0.67,203.69,203.65,4.91038546]
[1755966342701,0.67,203.68,203.66,3.25646948]
[1755966342906,11.9559777,203.7,203.65,4.91038546]
[1755966343126,11.9559777,203.7,203.66,3.25663253]
[1755966343302,12.6259777,203.72,203.67,3.25663253]
[1755966343505,38.6259777,203.74,203.68,3.91015642]
[1755966343706,38.6259777,203.74,203.68,0.65]
[1755966344218,38.6259777,203.74,203.67,11.9559777]
[1755966344416,0.67,203.73,203.68,8.16983751]
[1755966344721,0.67,203.72,203.69,3.26031471]
[1755966344917,0.67,203.72,203.68,4.9095228]
[1755966345113,26.67,203.74,203.69,3.26311679]
[1755966345319,0.67,203.74,203.7,28.8146885]
[1755966345506,0.67,203.74,203.7,13.59559401]
[1755966346817,26.0,203.76,203.71,4.90893917]
[1755966347009,0.06,203.77,203.73,11.9559777]
[1755966347208,0.06,203.77,203.72,26.20157171]
[1755966347410,11.9559777,203.74,203.7,39.28]
[1755966347610,12.6259777,203.76,203.71,3.26381044]
[1755966347811,0.67,203.75,203.72,3.26381044]
[1755966348108,0.67,203.75,203.71,13.59559401]
[1755966348454,11.9559777,203.72,203.68,13.59559401]
[1755966348606,0.67,203.72,203.69,3.26588968]
[1755966348926,0.67,203.71,203.67,13.59559401]
[1755966349108,0.67,203.7,203.68,3.26634607]
[1755966349308,0.67,203.7,203.66,13.59559401]
[1755966349519,0.67,203.7,203.67,3.26629549]
[1755966349701,0.67,203.7,203.68,3.26629549]
[1755966349904,0.67,203.7,203.66,18.50553663]
[1755966350200,0.67,203.69,203.66,13.59559401]
[1755966350403,0.67,203.69,203.67,3.26673634]
[1755966350612,0.67,203.68,203.65,13.59559401]
[1755966350826,11.9559777,203.67,203.66,3.26750238]
[1755966351038,12.6259777,203.67,203.64,0.03]
[1755966351232,0.67,203.66,203.65,3.26804703]
[1755966351422,0.67,203.66,203.64,0.03]
[1755966351841,26.0,203.7,203.64,0.03]
[1755966352157,0.67,203.65,203.64,0.03]
[1755966352810,12.6259777,203.65,203.64,0.03]
[1755966354235,0.67,203.65,203.64,0.03]
[1755966354402,12.6259777,203.65,203.64,0.03]
[1755966361840,0.67,203.69,203.64,0.03]
[1755966362038,11.9559777,203.67,203.64,0.03]
[1755966362732,12.6259777,203.67,203.64,0.03]
[1755966362930,0.67,203.66,203.64,0.03]
[1755966363151,26.0,203.71,203.65,0.67]
[1755966363360,26.67,203.71,203.66,4.91014435]
[1755966363532,12.26781002,203.79,203.67,26.22157171]
[1755966363533,12.6259777,203.73,203.67,26.22157171]
[1755966364345,26.67,203.73,203.67,25.55157171]
[1755966364564,38.6259777,203.73,203.67,25.55157171]
[1755966364771,38.6259777,203.73,203.67,26.22157171]
[1755966365467,38.6259777,203.73,203.68,4.90966221]
[1755966365841,0.67,203.72,203.68,4.90966221]
[1755966366758,11.9559777,203.71,203.67,19.17547108]
[1755966366943,11.9559777,203.69,203.65,13.59559401]
[1755966367139,12.6259777,203.69,203.65,13.59559401]
[1755966367454,11.9559777,203.69,203.65,13.59559401]
[1755966367636,11.9559777,203.7,203.65,13.59559401]
[1755966367838,11.9559777,203.7,203.66,0.67]
[1755966368035,0.67,203.7,203.65,25.55157171]
[1755966368249,11.9559777,203.71,203.66,3.86868978]
[1755966368461,0.67,203.7,203.65,25.55157171]
[1755966368664,0.67,203.7,203.66,3.19857089]
[1755966368847,0.67,203.7,203.66,4.90995332]
[1755966370265,0.67,203.69,203.65,13.59559401]
[1755966370562,11.9559777,203.66,203.64,0.03]
[1755966370779,11.9559777,203.65,203.64,0.03]
[1755966370967,12.6259777,203.65,203.64,0.03]
[1755966373649,30.90917829,203.71,203.64,0.03]
[1755966373850,11.9559777,203.66,203.64,0.03]
[1755966375080,30.90917829,203.71,203.64,0.03]
[1755966375081,11.9559777,203.67,203.64,0.03]
[1755966375563,11.9559777,203.65,203.64,0.03]
[1755966375761,0.67,203.66,203.64,0.03]
[1755966375977,12.6259777,203.65,203.64,0.03]
[1755966376577,11.9559777,203.65,203.64,0.03]
[1755966377081,12.6259777,203.65,203.64,0.03]
[1755966377291,11.9559777,203.65,203.64,0.03]
[1755966377585,26.67,203.67,203.64,0.03]
[1755966377758,12.6259777,203.67,203.64,0.03]
[1755966378662,12.6259777,203.69,203.64,0.7]
[1755966378998,11.9559777,203.7,203.64,5.61050064]
[1755966379169,12.6259777,203.68,203.64,4.94052896]
[1755966379371,11.9559777,203.68,203.64,5.61052896]
[1755966379585,11.9559777,203.69,203.64,5.61052896]
[1755966379979,12.6259777,203.69,203.64,5.61052896]
[1755966380176,0.67,203.68,203.64,4.94052896]
[1755966380572,0.67,203.67,203.65,3.20244943]
[1755966380896,12.6259777,203.67,203.64,0.03]
[1755966381204,11.9559777,203.68,203.65,3.20254903]
[1755966381371,38.94,203.72,203.64,0.03]
[1755966381569,11.9559777,203.7,203.64,0.03]
[1755966381991,12.6259777,203.7,203.64,25.58157171]
[1755966382170,0.67,203.7,203.65,3.19737662]
[1755966382370,0.67,203.7,203.65,11.9559777]
[1755966382572,11.9559777,203.7,203.64,25.58157171]
[1755966382781,12.6259777,203.69,203.64,13.62559401]
[1755966383067,12.6259777,203.69,203.65,3.19739261]
[1755966383272,12.6259777,203.68,203.64,4.94038886]
[1755966383477,11.9559777,203.68,203.64,0.03]
[1755966383777,12.6259777,203.68,203.64,0.03]
[1755966383980,0.67,203.67,203.64,0.03]
[1755966385806,11.9559777,203.66,203.64,0.03]
[1755966385985,11.9559777,203.65,203.64,0.03]
[1755966386373,0.67,203.65,203.64,0.03]
[1755966390583,0.72,203.67,203.64,0.03]
[1755966391212,0.72,203.66,203.64,0.03]
[1755966392521,11.9559777,203.67,203.64,0.03]
[1755966392726,0.72,203.65,203.64,0.03]
[1755966397626,69.7491944,203.7,203.64,0.03]
[1755966397924,0.72,203.65,203.64,0.03]
[1755966404815,12.6759777,203.65,203.64,0.03]
[1755966405120,17.58636316,203.65,203.64,0.03]
[1755966405792,12.6759777,203.65,203.64,0.03]
[1755966406706,0.72,203.65,203.64,0.03]
[1755966408519,5.63038546,203.65,203.64,0.03]
[1755966408717,17.58636316,203.65,203.64,0.03]
[1755966412414,17.8706863,203.65,203.64,0.03]
[1755966413299,56.5106863,203.65,203.64,0.03]
[1755966415823,70.10628031,203.65,203.64,0.03]
[1755966417724,4.91016284,203.66,203.64,0.03]
[1755966417930,64.6,203.65,203.64,0.03]
[1755966420326,82.15636316,203.65,203.64,0.03]
[1755966420535,56.4406863,203.65,203.64,0.03]
[1755966420830,58.4079803,203.65,203.64,0.03]
[1755966421429,58.12365716,203.65,203.64,0.03]
[1755966422508,84.12365716,203.65,203.64,0.03]
[1755966425244,45.52365716,203.65,203.64,0.03]
[1755966425447,84.08365716,203.65,203.64,0.03]
[1755966425656,58.08365716,203.65,203.64,0.03]
[1755966426431,58.3679803,203.65,203.64,0.03]
[1755966429132,71.96357431,203.65,203.64,0.03]
[1755966430151,58.04365716,203.65,203.64,0.03]
[1755966431849,58.3279803,203.65,203.64,0.03]
[1755966435941,39.59559401,203.62,203.61,1e-08]
[1755966436131,13.59559401,203.61,203.6,1e-08]
[1755966436460,26.24157171,203.61,203.6,1e-08]
[1755966436634,28.20934971,203.61,203.6,1e-08]
[1755966437037,0.28432314,203.6,203.59,0.03]
[1755966437247,0.28432314,203.6,203.54,0.03]
[1755966437248,0.28432314,203.56,203.54,0.03]
[1755966437553,51.43030084,203.56,203.54,0.03]
[1755966437964,58.31092533,203.56,203.54,0.03]
[1755966440365,13.87991715,203.55,203.52,0.03]
[1755966440555,64.05157171,203.54,203.52,0.03]
[1755966440753,65.02589485,203.54,203.52,0.03]
[1755966442058,77.43030084,203.54,203.52,0.03]
[1755966442266,82.34334004,203.54,203.52,0.03]
[1755966442759,43.84334004,203.54,203.52,0.03]
[1755966442982,82.34334004,203.54,203.52,0.03]
[1755966443284,95.93893405,203.54,203.52,0.03]
[1755966443779,57.43893405,203.54,203.52,0.03]
[1755966443956,95.95893405,203.54,203.52,0.03]
[1755966445854,25.55157171,203.53,203.52,0.03]
[1755966446051,94.37991715,203.52,203.51,1e-08]
[1755966446350,145.54589485,203.52,203.51,1e-08]
[1755966446579,147.51464085,203.52,203.51,1e-08]
[1755966447662,152.42816286,203.52,203.51,1e-08]
[1755966447868,164.38414056,203.52,203.51,1e-08]
[1755966448046,13.59559401,203.51,203.5,1e-08]
[1755966448247,26.24157171,203.51,203.5,1e-08]
[1755966448946,26.52589485,203.51,203.5,1e-08]
[1755966449541,31.4396583,203.51,203.5,1e-08]
[1755966449971,69.9596583,203.51,203.5,1e-08]
[1755966451248,0.28432314,203.46,203.44,0.03]
[1755966451541,55.39119028,203.45,203.44,0.03]
[1755966452050,57.36022728,203.45,203.44,0.03]
[1755966453269,57.36022728,203.45,203.44,0.75]
[1755966453465,57.36022728,203.45,203.44,0.03]
[1755966456868,1.969037,203.45,203.44,0.75]
[1755966457173,38.52,203.45,203.44,0.75]
[1755966458682,26.0,203.47,203.44,0.75]
[1755966458890,38.52,203.46,203.44,0.75]
[1755966459181,50.4759777,203.46,203.44,0.75]
[1755966459570,11.9559777,203.45,203.44,0.03]
[1755966459955,11.9559777,203.45,203.44,0.75]
[1755966460271,50.4759777,203.46,203.44,0.75]
[1755966460482,50.4759777,203.46,203.45,0.72]
[1755966461578,64.52,203.46,203.45,0.72]
[1755966462774,64.52,203.46,203.44,0.03]
[1755966462975,64.52,203.46,203.44,0.75]
[1755966463173,64.52,203.46,203.44,0.03]
[1755966463174,76.4759777,203.46,203.44,0.03]
[1755966463368,11.9559777,203.45,203.44,0.03]
[1755966464272,76.4759777,203.46,203.44,0.03]
[1755966464780,81.39096906,203.46,203.44,0.03]
[1755966465278,11.9559777,203.45,203.44,0.03]
[1755966465463,12.6459777,203.45,203.44,0.03]
[1755966466600,17.56119028,203.45,203.44,0.03]
[1755966468781,19.53022728,203.45,203.44,0.03]
[1755966469274,18.84022728,203.45,203.44,0.03]
[1755966469589,57.36022728,203.45,203.44,0.03]
[1755966469766,45.40424958,203.45,203.44,0.03]
[1755966469970,57.36022728,203.45,203.44,0.03]
[1755966470497,58.05022728,203.45,203.44,0.03]
[1755966472589,57.36022728,203.45,203.44,0.03]
[1755966472791,58.05022728,203.45,203.44,0.03]
[1755966473891,57.36022728,203.45,203.44,0.03]
[1755966474195,58.05022728,203.45,203.44,0.03]
[1755966476880,18.84022728,203.45,203.44,0.03]
[1755966477084,52.4450147,203.45,203.44,0.03]
[1755966477395,38.52,203.45,203.44,0.75]
[1755966478682,26.0,203.46,203.44,0.75]
[1755966478880,26.0,203.46,203.44,0.03]
[1755966479083,0.06,203.48,203.45,0.72]
[1755966479690,0.06,203.48,203.45,12.6759777]
[1755966479886,0.06,203.48,203.46,12.6759777]
[1755966480393,0.06,203.48,203.47,0.72]
[1755966481107,0.06,203.48,203.44,0.03]
[1755966481299,0.06,203.48,203.45,0.72]
[1755966482696,0.06,203.48,203.44,0.03]
[1755966482887,12.0159777,203.48,203.44,0.03]
[1755966483088,12.0159777,203.48,203.45,0.72]
[1755966483499,0.06,203.48,203.45,0.72]
[1755966491217,0.06,203.48,203.44,0.03]
[1755966491607,11.9559777,203.47,203.44,0.03]
[1755966491818,11.9559777,203.45,203.44,0.03]
[1755966492008,12.6259777,203.46,203.44,0.03]
[1755966493024,52.4246267,203.47,203.44,0.03]
[1755966493616,38.5,203.46,203.44,0.03]
[1755966496816,39.17,203.46,203.44,0.03]
[1755966499027,39.15,203.46,203.44,0.03]
[1755966499333,44.06499071,203.46,203.44,0.03]
[1755966499517,39.15,203.46,203.44,0.03]
[1755966500233,51.1059777,203.46,203.44,0.03]
[1755966500433,1.968649,203.47,203.44,0.03]
[1755966500635,38.48,203.46,203.44,0.03]
[1755966500935,39.15,203.46,203.44,0.03]
[1755966501519,51.1059777,203.46,203.44,0.03]
[1755966503838,0.67,203.45,203.44,0.03]
[1755966504137,51.1059777,203.46,203.44,0.03]
[1755966504322,11.9559777,203.45,203.44,0.03]
[1755966504522,38.6259777,203.45,203.44,0.03]
[1755966504729,40.5950147,203.45,203.44,0.03]
[1755966507619,45.51022728,203.45,203.44,0.03]
[1755966522375,41.16456472,203.45,203.44,0.03]
[1755966534753,15.44888786,203.45,203.44,0.03]
[1755966537661,15.44888786,203.45,203.4,1e-08]
[1755966537662,13.87991715,203.41,203.4,1e-08]
[1755966537848,39.87991715,203.39,203.33,0.03]
[1755966538054,85.93023229,203.39,203.33,0.03]
[1755966538273,87.90023929,203.39,203.33,0.03]
[1755966538454,88.57023929,203.39,203.33,0.03]
[1755966538879,93.48690185,203.39,203.33,0.03]
[1755966539174,93.48690185,203.39,203.35,0.67]
[1755966539175,7.55666956,203.39,203.35,0.67]
[1755966539474,33.61031514,203.36,203.35,0.67]
[1755966539678,72.05031514,203.36,203.35,0.67]
[1755966540855,72.05031514,203.36,203.33,0.67]
[1755966541054,72.05031514,203.36,203.34,0.67]
[1755966541576,4.918801,203.35,203.34,0.67]
[1755966542182,43.358801,203.35,203.34,0.67]
[1755966543888,55.25709829,203.35,203.32,3.99]
[1755966544068,11.89829729,203.34,203.32,3.99]
[1755966544775,50.33829729,203.33,203.32,3.32]
[1755966544963,50.33829729,203.33,203.32,3.99]
[1755966545376,50.33829729,203.33,203.32,3.32]
[1755966546371,38.44,203.33,203.32,3.32]
[1755966547391,4.9179085,203.34,203.32,3.32]
[1755966547686,38.44,203.33,203.32,3.32]
[1755966549290,41.76,203.33,203.32,3.32]
[1755966552409,3.32,203.33,203.32,3.99]
[1755966552575,38.44,203.35,203.32,3.99]
[1755966552900,3.32,203.34,203.33,0.67]
[1755966553076,38.44,203.35,203.33,0.67]
[1755966553472,38.44,203.35,203.32,3.32]
[1755966553885,38.44,203.35,203.32,3.99]
[1755966555903,50.338297,203.35,203.32,3.99]
[1755966556276,50.338297,203.35,203.32,3.32]
[1755966556683,51.008297,203.35,203.32,3.32]
[1755966557890,51.008297,203.35,203.32,3.35]
[1755966559576,39.11,203.35,203.32,3.35]
[1755966561097,38.44,203.35,203.32,3.35]
[1755966561302,39.11,203.35,203.32,3.35]
[1755966561676,38.44,203.35,203.32,4.02]
[1755966561877,38.44,203.35,203.33,0.67]
[1755966562199,38.44,203.35,203.32,3.35]
[1755966562704,39.11,203.35,203.32,3.35]
[1755966564989,0.67,203.35,203.32,3.35]
[1755966565399,39.09,203.35,203.32,3.35]
[1755966566480,0.67,203.34,203.32,3.35]
[1755966568314,46.03443714,203.33,203.32,3.35]
[1755966568686,46.74443714,203.33,203.32,3.35]
[1755966569116,50.09443714,203.33,203.32,3.35]
[1755966570207,29.35,203.33,203.32,3.35]
[1755966570403,26.0,203.33,203.32,3.35]
[1755966570583,26.71,203.33,203.32,3.35]
[1755966573089,34.32443714,203.33,203.32,3.35]